fUSD/lending_fUSD_20251224
["ID","MTS","AMOUNT","RATE_DAILY","PERIOD"]
[399681616,1766616168243,-500.0,0.00012613,2]
[399681617,1766616168284,-500.0,0.00012613,2]
[399681618,1766616168324,-500.0,0.00012613,2]
[399681619,1766616168364,-500.0,0.00012613,2]
[399681620,1766616168402,-500.0,0.00012613,2]
[399681621,1766616170158,-500.0,0.00012606,2]
[399681622,1766616170193,-500.0,0.00012606,2]
[399681623,1766616170498,-500.0,0.00012606,2]
[399681624,1766616170529,-500.0,0.00012606,2]
[399681625,1766616170565,-500.0,0.00012613,2]
[399681626,1766616170600,-500.0,0.00012613,2]
[399681627,1766616170636,-500.0,0.00012613,2]
[399681628,1766616170670,-500.0,0.00012613,2]
[399681629,1766616170706,-500.0,0.00012613,2]
[399681630,1766616170741,-500.0,0.00012613,2]
[399681631,1766616170852,-500.0,0.00012613,2]
[399681632,1766616170884,-500.0,0.00012613,2]
[399681633,1766616170915,-256.60694732,0.00012613,2]
[399681634,1766616170945,-1522.41328946,0.00012613,2]
[399681635,1766616170976,-150.0,0.00012613,2]
[399681636,1766616171100,500.0,0.00012606,2]
[399681637,1766616171614,500.0,0.00012606,2]
[399681638,1766616172159,500.0,0.00012606,2]
[399681639,1766616172447,500.0,0.00012606,2]
[399681640,1766616175159,-459.62267616,0.00012614,2]
[399681641,1766616175826,-10000.01,0.00012614,2]
[399681642,1766616175844,-10000.01,0.00012614,2]
[399681643,1766616175899,-10000.01,0.00012614,2]
[399681644,1766616176027,-10000.01,0.00012614,2]
[399681645,1766616176152,-10000.01,0.00012614,2]
[399681646,1766616176271,-10000.01,0.00012614,2]
[399681647,1766616176429,-10000.01,0.00012614,2]
[399681648,1766616177023,-10000.01,0.00012614,2]
[399681649,1766616177068,-10000.01,0.00012614,2]
[399681650,1766616177089,-10000.01,0.00012614,2]
[399681651,1766616177761,-177.89287076,0.00012614,2]
[399681652,1766616184474,-10000.01,0.00012614,2]
[399681653,1766616184490,-10000.01,0.00012614,2]
[399681654,1766616184522,-10000.01,0.00012614,2]
[399681655,1766616184571,-10000.01,0.00012614,2]
[399681656,1766616184684,-10000.01,0.00012614,2]
[399681657,1766616184816,-10000.01,0.00012614,2]
[399681658,1766616184952,-10000.01,0.00012614,2]
[399681659,1766616185078,-10000.01,0.00012614,2]
[399681660,1766616185174,-10000.01,0.00012614,2]
[399681661,1766616185307,-10000.01,0.00012614,2]
[399681662,1766616207475,-188.27973739,0.00012514,2]
[399681663,1766616232776,-251.74322123,0.00012514,2]
[399681664,1766616466986,-216.71122494,0.00012414,2]
[399681665,1766616467019,-216.71122492,0.00012464,2]
[399681666,1766616467053,-300.0,0.00012513,2]
[399681667,1766616467087,-1200.0,0.00012513,2]
[399681668,1766616467120,-2059.97704138,0.00012514,2]
[399681669,1766616467251,-2013.21101752,0.00012514,2]
[399681670,1766616475871,-10000.01,0.00012514,2]
[399681671,1766616551138,-1200.0,0.00012513,2]
[399681672,1766616551160,-300.0,0.00012513,2]
[399681673,1766616551182,-515.30310403,0.00012514,2]
[399681675,1766616577543,1852.42,0.00012013,2]
[399681683,1766616631332,-1200.0,0.00012513,2]
[399681684,1766616631342,-250.0,0.00012513,2]
[399681685,1766616631352,-1012.75549597,0.00012514,2]
[399681686,1766616631361,-4004.98341913,0.00012514,2]
[399681687,1766616631372,-216.71122492,0.00012514,2]
[399681688,1766616631381,-253.0,0.00012514,2]
[399681689,1766616631391,-250.0,0.00012535,2]
[399681690,1766616631400,-300.0,0.00012585,2]
[399681691,1766616631409,-300.0,0.00012585,2]
[399681692,1766616631418,-10378.83,0.00012586,2]
[399681693,1766616631429,-150.0,0.00012605,2]
[399681694,1766616631439,-207.4,0.00012606,2]
[399681695,1766616631448,-542.1991659,0.00012606,2]
[399681696,1766616631457,-201.0916735,0.00012606,2]
[399681697,1766616631467,-500.0,0.00012606,2]
[399681698,1766616631477,-500.0,0.00012606,2]
[399681699,1766616631488,-500.0,0.00012606,2]
[399681700,1766616631498,-500.0,0.00012606,2]
[399681701,1766616631508,-500.0,0.00012606,2]
[399681702,1766616631517,-500.0,0.00012606,2]
[399681703,1766616631527,-513.22375719,0.00012606,2]
[399681704,1766616631537,-151.0,0.00012606,2]
[399681705,1766616631547,-4911.94812318,0.00012614,2]
[399681706,1766616631557,-4237.20519219,0.00012614,2]
[399681707,1766616631567,-502.33995082,0.00012614,2]
[399681708,1766616631577,-250.42,0.00012618,2]
[399681710,1766616631587,-184.44195422,0.00012623,2]
[399681712,1766616631599,-633.0600064,0.00012623,2]
[399681714,1766616631609,-183.6958379,0.00012623,2]
[399681716,1766616631619,-500.0,0.00012623,2]
[399681717,1766616631628,-500.0,0.00012623,2]
[399681719,1766616631638,-500.0,0.00012623,2]
[399681721,1766616631647,-500.0,0.00012623,2]
[399681724,1766616631657,-500.0,0.00012623,2]
[399681726,1766616631667,-500.0,0.00012623,2]
[399681729,1766616631679,-500.0,0.00012623,2]
[399681731,1766616631688,-500.0,0.00012623,2]
[399681733,1766616631698,-416.16298413,0.00012623,2]
[399681735,1766616631708,-500.0,0.00012623,2]
[399681736,1766616631718,-500.0,0.00012623,2]
[399681737,1766616631727,-500.0,0.00012623,2]
[399681739,1766616631737,-500.0,0.00012623,2]
[399681741,1766616631747,-500.0,0.00012623,2]
[399681743,1766616631757,-500.0,0.00012623,2]
[399681745,1766616631768,-500.0,0.00012623,2]
[399681747,1766616631777,-500.0,0.00012623,2]
[399681749,1766616631787,-500.0,0.00012623,2]
[399681750,1766616631796,-500.0,0.00012623,2]
[399681751,1766616631806,-500.0,0.00012623,2]
[399681752,1766616631816,-500.0,0.00012623,2]
[399681753,1766616631825,-500.0,0.00012623,2]
[399681754,1766616631836,-500.0,0.00012623,2]
[399681755,1766616631845,-500.0,0.00012623,2]
[399681756,1766616631855,-500.0,0.00012623,2]
[399681757,1766616631865,-450.9928827,0.00012623,2]
[399681758,1766616631875,-1143.4,0.00012623,2]
[399681759,1766616631884,-500.0,0.00012624,2]
[399681760,1766616631894,-150.0,0.00012624,2]
[399681761,1766616631904,-20839.70466478,0.00012624,2]
[399681762,1766616631920,-882.31924771,0.00012624,2]
[399681763,1766616631932,-534.06656813,0.00012624,2]
[399681764,1766616631990,-291.01605699,0.00012624,2]
[399681765,1766616632002,-395.53587766,0.00012624,2]
[399681766,1766616632014,-3175.42758473,0.00012624,2]
[399681767,1766616632024,-9999.99,0.00012624,2]
[399681768,1766616632034,-186.24487987,0.00012668,2]
[399681769,1766616632043,-2033.81,0.00012669,2]
[399681770,1766616632054,-7127.0275354,0.00012669,2]
[399681771,1766616632075,-984.13374169,0.00012669,2]
[399681772,1766616637460,-6720.62872291,0.00012669,2]
[399681773,1766616637470,-500.0,0.00012714,2]
[399681774,1766616637480,-1000.0,0.00012714,2]
[399681775,1766616637490,-163.27,0.00012729,2]
[399681776,1766616637500,-292.29,0.00012729,2]
[399681777,1766616637511,-346.97,0.00012729,2]
[399681778,1766616637520,-299.99,0.00012729,2]
[399681779,1766616637530,-150.99,0.00012729,2]
[399681780,1766616637540,-1000.0,0.00012744,2]
[399681781,1766616637550,-34980.86,0.00012773,2]
[399681782,1766616637559,-496.0,0.00012838,2]
[399681783,1766616637570,-401.0,0.00012843,2]
[399681784,1766616637579,-500.0,0.00012856,2]
[399681785,1766616637589,-318.96183886,0.00012856,2]
[399681786,1766616637599,-281.64051929,0.00012856,2]
[399681787,1766616637614,-3453.14631966,0.00012857,2]
[399681788,1766616637624,-930.0,0.00012863,2]
[399681789,1766616637634,-220.0,0.00012868,2]
[399681790,1766616637644,-297.0,0.00012881,2]
[399681791,1766616637655,-530.0,0.00012889,2]
[399681792,1766616637664,-390.0,0.00012894,2]
[399681793,1766616637674,-1143.4,0.00012897,2]
[399681794,1766616637686,-500.0,0.00012898,2]
[399681795,1766616637696,-782.0,0.00012906,2]
[399681796,1766616637706,-179.0,0.00012906,2]
[399681797,1766616637721,-1159.0,0.00012914,2]
[399681798,1766616637731,-302.0,0.0001292,2]
[399681799,1766616637741,-644.0,0.00012932,2]
[399681800,1766616637751,-407.0,0.00012932,2]
[399681801,1766616637761,-1793.0,0.0001294,2]
[399681802,1766616637771,-422.0,0.00012945,2]
[399681803,1766616637781,-224.0,0.00012957,2]
[399681804,1766616637791,-157.0,0.00012958,2]
[399681805,1766616637800,-976.0,0.00012966,2]
[399681806,1766616637810,-467.0,0.00012971,2]
[399681807,1766616637820,-425.0,0.00012983,2]
[399681808,1766616637830,-200.0,0.00012984,2]
[399681809,1766616637840,-1747.0,0.00012991,2]
[399681810,1766616637850,-326.0,0.00012996,2]
[399681811,1766616637860,-16018.20443664,0.00013001,2]
[399681812,1766616637870,-519.0,0.00013009,2]
[399681813,1766616637880,-1682.0,0.00013017,2]
[399681814,1766616637890,-324.0,0.00013043,2]
[399681815,1766616637900,-322.6107,0.0001308,2]
[399681816,1766616637910,-578.20924308,0.0001308,2]
[399681817,1766616637919,-500.0,0.0001308,2]
[399681818,1766616637929,-500.0,0.0001308,2]
[399681819,1766616637939,-351.8282185,0.0001308,2]
[399681820,1766616637957,-148.1717815,0.0001308,2]
[399681821,1766616637967,-500.0,0.0001308,2]
[399681822,1766616637977,-500.0,0.0001308,2]
[399681823,1766616637987,-500.0,0.0001308,2]
[399681824,1766616637996,-500.0,0.0001308,2]
[399681825,1766616638006,-500.0,0.0001308,2]
[399681826,1766616638016,-500.0,0.0001308,2]
[399681827,1766616638026,-500.0,0.0001308,2]
[399681828,1766616638036,-500.0,0.0001308,2]
[399681829,1766616638046,-500.0,0.0001308,2]
[399681830,1766616638056,-500.0,0.0001308,2]
[399681831,1766616638067,-500.0,0.0001308,2]
[399681832,1766616638082,-500.0,0.0001308,2]
[399681833,1766616638092,-500.0,0.0001308,2]
[399681834,1766616638103,-500.0,0.0001308,2]
[399681835,1766616638113,-500.0,0.0001308,2]
[399681836,1766616638123,-399.36478538,0.0001308,2]
[399681837,1766616638132,-500.0,0.00013163,2]
[399681838,1766616638143,-150.0,0.00013163,2]
[399681839,1766616638152,-257.60886303,0.00013163,2]
[399681840,1766616638162,-150.0,0.00013163,2]
[399681841,1766616638171,-150.0,0.00013163,2]
[399681842,1766616638181,-180.09409672,0.00013163,2]
[399681843,1766616638191,-150.0,0.00013163,2]
[399681844,1766616638201,-200.0,0.00013163,2]
[399681845,1766616638211,-1143.4,0.00013171,2]
[399681846,1766616638221,-500.0,0.00013172,2]
[399681847,1766616638231,-500.0,0.0001319,2]
[399681848,1766616638241,-150.0,0.0001319,2]
[399681849,1766616638251,-500.0,0.00013218,2]
[399681850,1766616638262,-150.0,0.00013218,2]
[399681851,1766616638273,-150.0,0.00013245,2]
[399681852,1766616638283,-150.0,0.00013273,2]
[399681853,1766616638294,-159.71887192,0.000133,2]
[399681854,1766616638304,-217.39,0.00013401,2]
[399681855,1766616638314,-159.39,0.00013416,2]
[399681856,1766616638324,-346.18583748,0.00013419,2]
[399681857,1766616638334,-1143.4,0.00013445,2]
[399681858,1766616638344,-500.0,0.00013446,2]
[399681859,1766616638354,-379.66,0.00013481,2]
[399681860,1766616638364,-16018.20443664,0.00013489,2]
[399681861,1766616638374,-500.0,0.00013698,2]
[399681862,1766616638385,-500.0,0.00013698,2]
[399681863,1766616638395,-500.0,0.00013698,2]
[399681864,1766616638405,-500.0,0.00013698,2]
[399681865,1766616638415,-500.0,0.00013698,2]
[399681866,1766616638425,-500.0,0.00013698,2]
[399681867,1766616638436,-500.0,0.00013698,2]
[399681868,1766616638450,-500.0,0.00013698,2]
[399681869,1766616638460,-500.0,0.00013698,2]
[399681870,1766616638470,-500.0,0.00013698,2]
[399681871,1766616638480,-208.69,0.00013698,2]
[399681872,1766616638490,-500.0,0.00013698,2]
[399681873,1766616638500,-500.0,0.00013698,2]
[399681874,1766616638510,-500.0,0.00013698,2]
[399681875,1766616638520,-500.0,0.00013698,2]
[399681876,1766616638529,-500.0,0.00013698,2]
[399681877,1766616638539,-500.0,0.00013698,2]
[399681878,1766616638549,-500.0,0.00013698,2]
[399681879,1766616638559,-500.0,0.00013698,2]
[399681880,1766616638570,-500.0,0.00013698,2]
[399681881,1766616638579,-500.0,0.00013698,2]
[399681882,1766616638590,-500.0,0.00013698,2]
[399681883,1766616638599,-500.0,0.00013698,2]
[399681884,1766616638612,-500.0,0.00013698,2]
[399681885,1766616638622,-506.44561835,0.00013698,2]
[399681886,1766616638632,-500.0,0.00013698,2]
[399681887,1766616638646,-500.0,0.00013698,2]
[399681888,1766616638656,-500.0,0.00013698,2]
[399681889,1766616638673,-500.0,0.00013698,2]
[399681890,1766616638684,-500.0,0.00013698,2]
[399681891,1766616638695,-500.0,0.00013698,2]
[399681892,1766616638705,-500.0,0.00013698,2]
[399681893,1766616638715,-500.0,0.00013698,2]
[399681894,1766616638726,-500.0,0.00013698,2]
[399681895,1766616638736,-582.27761239,0.00013698,2]
[399681896,1766616638746,-286.12837513,0.00013698,2]
[399681897,1766616638756,-500.0,0.00013698,2]
[399681898,1766616638766,-500.0,0.00013698,2]
[399681899,1766616638775,-500.0,0.00013698,2]
[399681900,1766616638785,-500.0,0.00013698,2]
[399681901,1766616638795,-365.27868297,0.00013698,2]
[399681902,1766616638805,-500.0,0.00013698,2]
[399681903,1766616638816,-500.0,0.00013698,2]
[399681904,1766616638826,-500.0,0.00013698,2]
[399681905,1766616638837,-500.0,0.00013698,2]
[399681906,1766616638847,-500.0,0.00013698,2]
[399681907,1766616638857,-500.0,0.00013698,2]
[399681908,1766616638867,-500.0,0.00013698,2]
[399681909,1766616638878,-13763.6,0.00013699,2]
[399681910,1766616638889,-200.0,0.00013699,2]
[399681911,1766616638899,-500.0,0.00013699,2]
[399681912,1766616638910,-176.97036574,0.00013699,2]
[399681913,1766616638921,-255.0,0.00013702,2]
[399681914,1766616638931,-1143.4,0.00013719,2]
[399681915,1766616638942,-500.0,0.0001372,2]
[399681916,1766616638952,-366.0,0.00013729,2]
[399681917,1766616638962,-1680.0,0.00013764,2]
[399681918,1766616638972,-300.0,0.00013764,2]
[399681919,1766616638983,-600.0,0.00013764,2]
[399681920,1766616638994,-195.0,0.00013764,2]
[399681921,1766616639004,-600.0,0.00013764,2]
[399681922,1766616639015,-600.0,0.00013764,2]
[399681923,1766616639035,-600.0,0.00013764,2]
[399681924,1766616639052,-158.83021572,0.00013764,2]
[399681925,1766616639062,-195.0,0.00013764,2]
[399681926,1766616639073,-300.0,0.00013764,2]
[399681927,1766616639085,-300.0,0.00013764,2]
[399681928,1766616639096,-300.0,0.00013764,2]
[399681929,1766616639107,-300.0,0.00013764,2]
[399681930,1766616639117,-300.0,0.00013764,2]
[399681931,1766616639128,-195.0,0.00013764,2]
[399681932,1766616639138,-300.0,0.00013764,2]
[399681933,1766616639148,-195.0,0.00013764,2]
[399681934,1766616639158,-250.0,0.00013764,2]
[399681935,1766616639169,-300.0,0.00013764,2]
[399681936,1766616639179,-420.0,0.00013807,2]
[399681937,1766616639190,-420.0,0.00013807,2]
[399681938,1766616639201,-16018.20443664,0.00013976,2]
[399681939,1766616639211,-1143.4,0.00013993,2]
[399681940,1766616639222,-500.0,0.00013994,2]
[399681941,1766616639232,-283.9,0.00013996,2]
[399681942,1766616639243,-186.05882105,0.00014068,2]
[399681943,1766616639253,-13170.86913204,0.00014104,2]
[399681944,1766616639265,-163.27,0.00014143,2]
[399681945,1766616639275,-500.0,0.00014179,2]
[399681946,1766616639286,-118932.31,0.0001418,2]
[399681947,1766616639296,-1143.4,0.00014267,2]
[399681948,1766616639306,-594.89493419,0.00014268,2]
[399681950,1766616639316,-500.0,0.00014275,2]
[399681951,1766616639326,-500.0,0.00014275,2]
[399681952,1766616639337,-1000.0,0.00014337,2]
[399681953,1766616639347,-13170.86913199,0.00014415,2]
[399681954,1766616639357,-334.5472959,0.00014449,2]
[399681955,1766616639367,-16018.20443664,0.00014463,2]
[399681956,1766616639378,-3933.70575324,0.0001451,2]
[399681957,1766616639394,-1143.47066189,0.00014541,2]
[399681958,1766616639406,-152.0,0.00014712,2]
[399681959,1766616639416,-152.0,0.00014712,2]
[399681960,1766616639427,-152.0,0.00014712,2]
[399681961,1766616639437,-152.0,0.00014712,2]
[399681962,1766616639447,-1256.0,0.00014712,2]
[399681963,1766616639458,-152.0,0.00014712,2]
[399681964,1766616639468,-152.0,0.00014712,2]
[399681965,1766616639479,-1256.0,0.00014712,2]
[399681966,1766616639489,-152.0,0.00014712,2]
[399681967,1766616639500,-152.0,0.00014712,2]
[399681968,1766616639512,-1256.0,0.00014712,2]
[399681969,1766616639523,-152.0,0.00014712,2]
[399681970,1766616639533,-152.0,0.00014712,2]
[399681971,1766616639543,-1256.0,0.00014712,2]
[399681972,1766616639553,-152.0,0.00014712,2]
[399681973,1766616639564,-152.0,0.00014712,2]
[399681974,1766616639574,-1256.0,0.00014712,2]
[399681975,1766616639584,-152.0,0.00014712,2]
[399681976,1766616639594,-152.0,0.00014712,2]
[399681977,1766616639607,-836.0,0.00014712,2]
[399681978,1766616639618,-1256.0,0.00014712,2]
[399681979,1766616639628,-152.0,0.00014712,2]
[399681980,1766616639638,-152.0,0.00014712,2]
[399681981,1766616639649,-836.0,0.00014712,2]
[399681982,1766616639659,-1256.0,0.00014712,2]
[399681983,1766616639670,-152.0,0.00014712,2]
[399681984,1766616639681,-152.0,0.00014712,2]
[399681985,1766616639693,-1256.0,0.00014712,2]
[399681986,1766616639703,-152.0,0.00014712,2]
[399681987,1766616639714,-152.0,0.00014712,2]
[399681988,1766616639723,-1256.0,0.00014712,2]
[399681989,1766616639733,-152.0,0.00014712,2]
[399681990,1766616639744,-152.0,0.00014712,2]
[399681991,1766616639759,-152.0,0.00014712,2]
[399681992,1766616639769,-1256.0,0.00014712,2]
[399681993,1766616639779,-152.0,0.00014712,2]
[399681994,1766616639790,-152.0,0.00014712,2]
[399681995,1766616639802,-152.0,0.00014712,2]
[399681996,1766616639812,-1256.0,0.00014712,2]
[399681997,1766616639823,-152.0,0.00014712,2]
[399681998,1766616639834,-152.0,0.00014712,2]
[399681999,1766616639844,-1256.0,0.00014712,2]
[399682000,1766616639854,-152.0,0.00014712,2]
[399682001,1766616639864,-152.0,0.00014712,2]
[399682002,1766616639875,-1256.0,0.00014712,2]
[399682003,1766616639885,-152.0,0.00014712,2]
[399682004,1766616639895,-1256.0,0.00014712,2]
[399682005,1766616639906,-152.0,0.00014712,2]
[399682006,1766616639916,-152.0,0.00014712,2]
[399682007,1766616639927,-1256.0,0.00014712,2]
[399682008,1766616639938,-152.0,0.00014712,2]
[399682009,1766616639948,-152.0,0.00014712,2]
[399682010,1766616639959,-152.0,0.00014712,2]
[399682011,1766616639969,-152.0,0.00014712,2]
[399682012,1766616639980,-1256.0,0.00014712,2]
[399682013,1766616639990,-152.0,0.00014712,2]
[399682014,1766616640000,-152.0,0.00014712,2]
[399682015,1766616640010,-152.0,0.00014712,2]
[399682016,1766616640020,-1256.0,0.00014712,2]
[399682017,1766616640030,-152.0,0.00014712,2]
[399682018,1766616640041,-152.0,0.00014712,2]
[399682019,1766616640051,-1256.0,0.00014712,2]
[399682020,1766616640062,-152.0,0.00014712,2]
[399682021,1766616640073,-1256.0,0.00014712,2]
[399682022,1766616640084,-152.0,0.00014712,2]
[399682023,1766616640094,-152.0,0.00014712,2]
[399682024,1766616640104,-1256.0,0.00014712,2]
[399682025,1766616640119,-152.0,0.00014712,2]
[399682026,1766616640129,-152.0,0.00014712,2]
[399682027,1766616640139,-1256.0,0.00014712,2]
[399682028,1766616640150,-152.0,0.00014712,2]
[399682029,1766616640160,-152.0,0.00014712,2]
[399682030,1766616640171,-1256.0,0.00014712,2]
[399682031,1766616640181,-152.0,0.00014712,2]
[399682032,1766616640191,-152.0,0.00014712,2]
[399682033,1766616640201,-1256.0,0.00014712,2]
[399682034,1766616640212,-152.0,0.00014712,2]
[399682035,1766616640222,-152.0,0.00014712,2]
[399682036,1766616640233,-1256.0,0.00014712,2]
[399682037,1766616640244,-152.0,0.00014712,2]
[399682038,1766616640254,-152.0,0.00014712,2]
[399682039,1766616640264,-1256.0,0.00014712,2]
[399682040,1766616640274,-152.0,0.00014712,2]
[399682041,1766616640285,-152.0,0.00014712,2]
[399682042,1766616640295,-1256.0,0.00014712,2]
[399682043,1766616640305,-1256.0,0.00014712,2]
[399682044,1766616640315,-152.0,0.00014712,2]
[399682045,1766616640325,-152.0,0.00014712,2]
[399682046,1766616640335,-1256.0,0.00014712,2]
[399682047,1766616640346,-152.0,0.00014712,2]
[399682048,1766616640355,-152.0,0.00014712,2]
[399682049,1766616640365,-1256.0,0.00014712,2]
[399682050,1766616640375,-152.0,0.00014712,2]
[399682051,1766616640386,-152.0,0.00014712,2]
[399682052,1766616640396,-1256.0,0.00014712,2]
[399682053,1766616640406,-152.0,0.00014712,2]
[399682054,1766616640416,-152.0,0.00014712,2]
[399682055,1766616640426,-152.0,0.00014712,2]
[399682056,1766616640436,-152.0,0.00014712,2]
[399682057,1766616640446,-152.0,0.00014712,2]
[399682058,1766616640456,-1255.0,0.00014712,2]
[399682059,1766616640466,-206.21647338,0.00014712,2]
[399682060,1766616640480,-152.0,0.00014712,2]
[399682061,1766616640490,-1256.0,0.00014712,2]
[399682062,1766616640501,-1256.0,0.00014712,2]
[399682063,1766616640512,-1256.0,0.00014712,2]
[399682064,1766616640522,-152.0,0.00014712,2]
[399682065,1766616640533,-152.0,0.00014712,2]
[399682066,1766616640543,-13170.86913199,0.00014725,2]
[399682067,1766616640554,-433.0,0.000149,2]
[399682068,1766616640564,-16018.20443664,0.00014951,2]
[399682069,1766616640574,-303.44161789,0.00015,2]
[399682070,1766616640585,-13170.86913199,0.00015036,2]
[399682071,1766616640595,-2351.0,0.00015141,2]
[399682072,1766616640606,-587.0,0.00015148,2]
[399682073,1766616640619,-587.0,0.00015148,2]
[399682074,1766616640628,-150.0,0.00015288,2]
[399682075,1766616640638,-150.0,0.00015288,2]
[399682076,1766616640648,-150.0,0.00015288,2]
[399682077,1766616640663,-150.0,0.00015288,2]
[399682078,1766616640673,-150.0,0.00015288,2]
[399682079,1766616640688,-150.0,0.00015288,2]
[399682080,1766616640698,-150.0,0.00015288,2]
[399682081,1766616640708,-179.31223623,0.00015288,2]
[399682082,1766616640718,-150.0,0.00015288,2]
[399682083,1766616640728,-150.0,0.00015288,2]
[399682084,1766616640738,-13170.86913199,0.00015347,2]
[399682085,1766616640748,-16018.20443664,0.00015438,2]
[399682086,1766616641120,-3594.0,0.00015456,2]
[399682087,1766616641131,-163.27,0.00015558,2]
[399682088,1766616641156,-13170.86913199,0.00015657,2]
[399682089,1766616641167,-346.92554585,0.00015818,2]
[399682090,1766616641178,-967.0,0.00015818,2]
[399682091,1766616641188,-599.60298507,0.00015819,2]
[399682092,1766616641198,-217.39,0.00015905,2]
[399682093,1766616641208,-967.0,0.00015922,2]
[399682094,1766616641218,-16018.20443664,0.00015925,2]
[399682095,1766616641228,-1000.0,0.0001593,2]
[399682096,1766616641239,-967.0,0.0001593,2]
[399682097,1766616641249,-159.39,0.00015946,2]
[399682098,1766616641258,-379.66,0.00015963,2]
[399682099,1766616641269,-967.0,0.00015967,2]
[399682100,1766616641279,-13170.86913199,0.00015968,2]
[399682101,1766616641290,-500.0,0.00015999,2]
[399682102,1766616641300,-500.0,0.00015999,2]
[399682103,1766616641311,-967.0,0.00016006,2]
[399682104,1766616641321,-150.0,0.00016137,2]
[399682105,1766616641331,-150.0,0.00016137,2]
[399682106,1766616641341,-967.0,0.00016165,2]
[399682107,1766616641351,-736.0,0.00016185,2]
[399682108,1766616641361,-967.0,0.00016189,2]
[399682109,1766616641372,-10000.0,0.00016199,2]
[399682110,1766616641382,-967.0,0.00016202,2]
[399682111,1766616641392,-967.0,0.00016264,2]
[399682112,1766616641402,-13170.86913199,0.00016279,2]
[399682113,1766616641413,-1332.659,0.00016299,2]
[399682114,1766616641423,-617.446,0.00016299,2]
[399682115,1766616641433,-1609.0,0.00016299,2]
[399682116,1766616641443,-3458.0,0.00016299,2]
[399682117,1766616641453,-1267.071,0.00016299,2]
[399682118,1766616641463,-522.207,0.00016299,2]
[399682119,1766616641473,-250.0,0.00016299,2]
[399682120,1766616641484,-6533.0,0.00016299,2]
[399682121,1766616641500,-2430.0,0.00016299,2]
[399682122,1766616641511,-967.0,0.00016302,2]
[399682123,1766616641523,-967.0,0.00016362,2]
[399682124,1766616641533,-967.0,0.00016385,2]
[399682125,1766616641544,-16018.20443664,0.00016413,2]
[399682126,1766616641554,-967.0,0.00016436,2]
[399682127,1766616641564,-500.0,0.00016437,2]
[399682128,1766616641575,-500.0,0.00016438,2]
[399682129,1766616641585,-13684.9,0.00016438,2]
[399682130,1766616641595,-500.0,0.00016438,2]
[399682131,1766616641607,-500.0,0.00016438,2]
[399682132,1766616641619,-500.0,0.00016438,2]
[399682133,1766616641630,-500.0,0.00016438,2]
[399682134,1766616641640,-500.0,0.00016438,2]
[399682135,1766616641650,-306.83324703,0.00016438,2]
[399682136,1766616641664,-500.0,0.00016438,2]
[399682137,1766616641674,-500.0,0.00016438,2]
[399682138,1766616641685,-500.0,0.00016438,2]
[399682139,1766616641696,-500.0,0.00016438,2]
[399682140,1766616641706,-500.0,0.00016438,2]
[399682141,1766616641716,-556.44,0.00016438,2]
[399682142,1766616641727,-544.73,0.00016438,2]
[399682143,1766616641737,-967.0,0.00016441,2]
[399682144,1766616641748,-967.0,0.00016514,2]